bitfinex/quotes_BTCUSD_20240728
["timestamp","ask_amount","ask_price","bid_price","bid_amount"]
[1722158676997,0.0793,67531.0,67530.0,0.79496392]
[1722158677192,0.0793,67531.0,67530.0,0.55803292]
[1722158678239,0.0793,67531.0,67530.0,0.79496392]
[1722158678597,0.0793,67531.0,67530.0,0.55803292]
[1722158679518,0.0793,67531.0,67530.0,0.79496392]
[1722158679747,0.0793,67531.0,67530.0,0.55803292]
[1722158681263,0.0793,67531.0,67530.0,0.79496392]
[1722158681469,0.0793,67531.0,67530.0,0.55803292]
[1722158682064,0.0793,67531.0,67530.0,0.79496392]
[1722158682238,0.0793,67531.0,67530.0,0.55803292]
[1722158682445,0.0793,67531.0,67530.0,0.79496392]
[1722158684446,0.0793,67531.0,67530.0,0.55803292]
[1722158685006,0.0793,67531.0,67530.0,0.79496392]
[1722158685360,0.0793,67531.0,67530.0,0.55803292]
[1722158685760,0.001,67531.0,67530.0,0.86046392]
[1722158687335,0.001,67531.0,67530.0,0.79496392]
[1722158689445,0.0815,67531.0,67530.0,0.79496392]
[1722158693424,0.0815,67531.0,67530.0,0.55803292]
[1722158694825,0.0815,67531.0,67530.0,0.48043292]
[1722158696510,0.12038126,67531.0,67530.0,0.48043292]
[1722158697699,0.38756723,67531.0,67530.0,0.016]
[1722158697847,0.47655529,67531.0,67530.0,0.016]
[1722158698054,0.35809129,67531.0,67530.0,0.016]
[1722158698260,0.35810839,67531.0,67530.0,0.016]
[1722158698460,0.26910323,67531.0,67530.0,0.016]
[1722158698795,0.27065743,67531.0,67530.0,0.016]
[1722158699160,0.29848512,67531.0,67530.0,0.016]
[1722158701477,0.50591679,67531.0,67530.0,0.016]
[1722158701831,0.29693092,67531.0,67530.0,0.016]
[1722158702067,0.41529279,67531.0,67530.0,0.016]
[1722158702273,0.33287082,67531.0,67530.0,0.016]
[1722158702474,0.48295795,67531.0,67530.0,0.016]
[1722158703549,0.48140375,67531.0,67530.0,0.016]
[1722158704753,0.48132705,67531.0,67530.0,0.016]
[1722158704952,0.36286305,67531.0,67530.0,0.016]
[1722158705578,0.29617082,67531.0,67530.0,0.016]
[1722158705783,0.29772502,67531.0,67530.0,0.016]
[1722158706104,0.29852656,67531.0,67530.0,0.016]
[1722158706515,0.41699056,67531.0,67530.0,0.016]
[1722158706654,0.41543636,67531.0,67530.0,0.016]
[1722158706859,0.41699056,67531.0,67530.0,0.016]
[1722158707355,0.41543636,67531.0,67530.0,0.016]
[1722158707536,0.41657415,67531.0,67530.0,0.016]
[1722158707870,0.41543636,67531.0,67530.0,0.016]
[1722158708100,0.41670858,67531.0,67530.0,0.016]
[1722158708234,0.41667273,67531.0,67530.0,0.016]
[1722158708636,0.96812873,67531.0,67530.0,0.016]
[1722158708846,1.52824083,67531.0,67530.0,0.016]
[1722158709025,1.76516883,67531.0,67530.0,0.016]
[1722158709777,1.76516883,67531.0,67530.0,0.008]
[1722158709778,1.76416883,67531.0,67530.0,0.008]
[1722158710170,1.76916883,67531.0,67530.0,0.008]
[1722158710381,0.829332,67524.0,67512.0,0.000924]
[1722158710551,1.40591781,67524.0,67512.0,0.000924]
[1722158710753,1.40591781,67524.0,67512.0,0.119421]
[1722158710754,1.29489547,67524.0,67512.0,0.119421]
[1722158710953,0.98034347,67524.0,67512.0,0.000924]
[1722158711162,0.98034347,67524.0,67513.0,0.118495]
[1722158711365,0.88102295,67524.0,67512.0,0.119421]
[1722158711742,0.88102211,67524.0,67513.0,0.118495]
[1722158711942,0.88102211,67524.0,67512.0,0.11942]
[1722158713178,0.15804211,67524.0,67523.0,0.001924]
[1722158713383,0.15361588,67524.0,67523.0,0.001924]
[1722158713585,0.15061588,67524.0,67523.0,0.001924]
[1722158713788,0.16017008,67524.0,67523.0,0.002924]
[1722158714015,0.15317008,67524.0,67523.0,0.001924]
[1722158714168,0.27009188,67524.0,67523.0,0.000924]
[1722158714370,0.0894,67524.0,67523.0,0.000924]
[1722158714579,0.15594491,67524.0,67523.0,0.000924]
[1722158717379,0.27442091,67524.0,67523.0,0.000924]
[1722158717790,0.207876,67524.0,67523.0,0.000924]
[1722158717992,0.27441428,67524.0,67523.0,0.000924]
[1722158720362,0.35531385,67524.0,67523.0,0.000924]
[1722158720736,0.27441428,67524.0,67523.0,0.000924]
[1722158720989,0.207876,67524.0,67523.0,0.000924]
[1722158721180,0.59223551,67524.0,67523.0,0.000924]
[1722158721381,0.89228751,67524.0,67523.0,0.000924]
[1722158721588,0.89229486,67524.0,67523.0,0.000924]
[1722158721706,0.65534286,67524.0,67523.0,0.000924]
[1722158722157,0.89229486,67524.0,67523.0,0.000924]
[1722158724342,0.89212401,67524.0,67523.0,0.000924]
[1722158727336,1.12907601,67524.0,67523.0,0.000924]
[1722158727539,1.06267386,67524.0,67523.0,0.000924]
[1722158727745,1.22760479,67524.0,67523.0,0.000924]
[1722158728501,1.12883572,67524.0,67523.0,0.000924]
[1722158729365,1.22749613,67524.0,67523.0,0.000924]
[1722158730766,1.06267386,67524.0,67523.0,0.000924]
[1722158730943,1.22748781,67524.0,67523.0,0.000924]
[1722158731142,1.06267386,67524.0,67523.0,0.000924]
[1722158731343,1.22762669,67524.0,67523.0,0.000924]
[1722158733348,1.37788626,67524.0,67523.0,0.000924]
[1722158733885,1.61483826,67524.0,67523.0,0.000924]
[1722158734006,1.61447578,67524.0,67523.0,0.000924]
[1722158734704,1.72535844,67524.0,67523.0,0.000924]
[1722158734905,1.70318675,67524.0,67523.0,0.000924]
[1722158735462,1.69118675,67524.0,67523.0,0.000924]
[1722158735620,1.70318675,67524.0,67523.0,0.000924]
[1722158735826,1.71118675,67524.0,67523.0,0.001924]
[1722158736011,1.78399767,67524.0,67523.0,0.001924]
[1722158736210,1.77599767,67524.0,67523.0,0.000924]
[1722158736674,1.78499767,67524.0,67523.0,0.001924]
[1722158737314,1.53169635,67524.0,67523.0,0.001924]
[1722158737537,1.6962405,67524.0,67523.0,0.001924]
[1722158738961,1.6970805,67524.0,67523.0,0.001924]
[1722158740497,1.69691358,67524.0,67523.0,0.001924]
[1722158740892,1.69691363,67524.0,67523.0,0.001924]
[1722158741348,1.62410271,67524.0,67523.0,0.001924]
[1722158743617,1.62421554,67524.0,67523.0,0.001924]
[1722158745603,1.7573612,67524.0,67523.0,0.001924]
[1722158745960,1.69153335,67524.0,67523.0,0.001924]
[1722158746164,1.75756899,67524.0,67523.0,0.001924]
[1722158747347,1.75768121,67524.0,67523.0,0.001924]
[1722158748222,1.90794078,67524.0,67523.0,0.001924]
[1722158748631,1.75768121,67524.0,67523.0,0.001924]
[1722158749394,1.62453391,67524.0,67523.0,0.001924]
[1722158750002,1.7576968,67524.0,67523.0,0.001924]
[1722158750621,1.62453391,67524.0,67523.0,0.001924]
[1722158750898,1.62470618,67524.0,67523.0,0.001924]
[1722158751321,1.77496575,67524.0,67523.0,0.001924]
[1722158753409,1.62470618,67524.0,67523.0,0.001924]
[1722158753613,1.6242337,67524.0,67523.0,0.001924]
[1722158756988,1.62391741,67524.0,67523.0,0.001924]
[1722158760265,1.6240194,67524.0,67523.0,0.001924]
[1722158760631,1.62394761,67524.0,67523.0,0.001924]
[1722158761026,1.77420718,67524.0,67523.0,0.001924]
[1722158762410,1.609985,67524.0,67523.0,0.001924]
[1722158762605,1.77388693,67524.0,67523.0,0.001924]
[1722158763959,1.76679606,67524.0,67523.0,0.001924]
[1722158764522,1.85348849,67524.0,67523.0,0.001924]
[1722158764866,1.95348849,67524.0,67523.0,0.001924]
[1722158765619,1.95404265,67524.0,67523.0,0.001924]
[1722158766195,1.77758656,67524.0,67523.0,0.001924]
[1722158766497,1.95604268,67524.0,67523.0,0.001924]
[1722158766773,2.09230225,67524.0,67523.0,0.001924]
[1722158766956,2.08330225,67524.0,67523.0,0.000924]
[1722158767134,2.09730225,67524.0,67523.0,0.000924]
[1722158767336,2.11130225,67524.0,67523.0,0.000924]
[1722158767736,2.12530225,67524.0,67523.0,0.000924]
[1722158767938,2.18890225,67524.0,67523.0,0.000924]
[1722158768147,2.20290225,67524.0,67523.0,0.000924]
[1722158768959,2.20365158,67524.0,67523.0,0.000924]
[1722158769158,2.20368596,67524.0,67523.0,0.000924]
[1722158769358,1.96673396,67524.0,67523.0,0.000924]
[1722158770783,2.20368596,67524.0,67523.0,0.000924]
[1722158772425,2.03919546,67524.0,67523.0,0.000924]
[1722158772626,2.20340796,67524.0,67523.0,0.000924]
[1722158772925,2.20340804,67524.0,67523.0,0.000924]
[1722158775582,2.20379004,67524.0,67523.0,0.000924]
[1722158776605,1.96683804,67524.0,67523.0,0.000924]
[1722158777045,2.20379004,67524.0,67523.0,0.000924]
[1722158782193,2.20341344,67524.0,67523.0,0.000924]
[1722158782520,2.03919546,67524.0,67523.0,0.000924]
[1722158782746,2.20327164,67524.0,67523.0,0.000924]
[1722158783347,1.96631964,67524.0,67523.0,0.000924]
[1722158784380,2.20327164,67524.0,67523.0,0.000924]
[1722158785327,2.03919546,67524.0,67523.0,0.000924]
[1722158785501,2.20331396,67524.0,67523.0,0.000924]
[1722158786302,2.44026596,67524.0,67523.0,1e-06]
[1722158786488,1.204059,67513.0,67512.0,0.000924]
[1722158786682,1.67053739,67513.0,67512.0,0.000924]
[1722158787695,1.68453739,67513.0,67512.0,0.000924]
[1722158787944,1.69853739,67513.0,67512.0,0.000924]
[1722158788215,1.68453739,67513.0,67512.0,0.000924]
[1722158788372,2.08578796,67513.0,67512.0,0.000924]
[1722158788581,2.08622463,67513.0,67512.0,0.000924]
[1722158789093,2.07222463,67513.0,67512.0,0.000924]
[1722158789686,2.05822463,67513.0,67512.0,0.000924]
[1722158790110,2.07222463,67513.0,67512.0,0.000924]
[1722158790654,1.204199,67504.0,67503.0,0.000924]
[1722158790805,1.82113694,67504.0,67503.0,0.000924]
[1722158790987,1.67111406,67504.0,67503.0,0.000924]
[1722158791194,1.61061406,67504.0,67503.0,0.000924]
[1722158791389,1.76059831,67504.0,67503.0,0.000924]
[1722158791606,1.69493931,67504.0,67503.0,0.000924]
[1722158791796,1.86072177,67504.0,67503.0,0.000924]
[1722158792059,1.87472177,67504.0,67503.0,0.000924]
[1722158792354,1.7247359,67504.0,67503.0,0.000924]
[1722158793256,1.73300932,67504.0,67503.0,0.000924]
[1722158793487,1.71900932,67504.0,67503.0,0.000924]
[1722158793690,1.70500932,67504.0,67503.0,0.000924]
[1722158793820,1.86899522,67504.0,67503.0,0.000924]
[1722158794018,1.88299522,67504.0,67503.0,0.000924]
[1722158794219,1.8830576,67504.0,67503.0,0.000924]
[1722158794847,1.78379778,67504.0,67503.0,0.000924]
[1722158795046,2.12001012,67504.0,67503.0,0.000924]
[1722158795280,1.97002422,67504.0,67503.0,0.000924]
[1722158796873,1.73300222,67504.0,67503.0,0.000924]
[1722158798292,1.73242233,67504.0,67503.0,0.000924]
[1722158799987,1.74159409,67504.0,67503.0,0.000924]
[1722158801529,1.87441992,67504.0,67503.0,0.000924]
[1722158801804,1.74126483,67504.0,67503.0,0.000924]
[1722158801913,1.74110708,67504.0,67503.0,0.000924]
[1722158804724,1.74104795,67504.0,67503.0,0.000924]
[1722158807313,1.74065018,67504.0,67503.0,0.000924]
[1722158808134,1.74068163,67504.0,67503.0,0.000924]
[1722158811297,1.57600085,67504.0,67503.0,0.000924]
[1722158811496,1.7406845,67504.0,67503.0,0.000924]
[1722158811716,1.57600085,67504.0,67503.0,0.000924]
[1722158811875,1.74065836,67504.0,67503.0,0.000924]
[1722158817896,1.74040851,67504.0,67503.0,0.000924]
[1722158818457,1.64151396,67504.0,67503.0,0.000924]
[1722158819082,1.64151396,67504.0,67501.0,0.000924]
[1722158819083,0.59831496,67504.0,67501.0,0.000924]
[1722158819282,0.59831496,67504.0,67463.0,0.4718]
[1722158819283,0.355612,67489.0,67463.0,0.4718]
[1722158819482,1.2314914,67489.0,67477.0,0.0627]
[1722158819727,1.7056414,67489.0,67477.0,0.0627]
[1722158819927,1.7286414,67489.0,67477.0,0.0627]
[1722158820701,1.56423374,67489.0,67477.0,0.0627]
[1722158820899,1.74178857,67489.0,67477.0,0.0627]
[1722158821115,0.11855,67482.0,67470.0,0.0627]
[1722158821319,1.10705709,67482.0,67470.0,0.0627]
[1722158821535,1.91646464,67482.0,67470.0,0.0627]
[1722158822847,1.67936464,67482.0,67470.0,0.0627]
[1722158823055,1.70736464,67482.0,67470.0,0.0627]
[1722158823187,1.85873545,67482.0,67470.0,0.0627]
[1722158823398,1.84473545,67482.0,67470.0,0.0627]
[1722158823642,1.85873545,67482.0,67470.0,0.0627]
[1722158823837,1.87273545,67482.0,67470.0,0.0627]
[1722158826463,1.87273545,67482.0,67481.0,0.0638]
[1722158826464,1.58092244,67482.0,67481.0,0.0638]
[1722158826688,1.50384909,67482.0,67481.0,0.0638]
[1722158826891,1.4712062,67482.0,67481.0,0.0638]
[1722158827384,1.3516062,67482.0,67481.0,0.0638]
[1722158827591,1.3656062,67482.0,67481.0,0.0638]
[1722158827939,1.3796062,67482.0,67481.0,0.0638]
[1722158829223,1.47785096,67482.0,67481.0,0.0638]
[1722158829458,1.56651012,67482.0,67481.0,0.0638]
[1722158829941,1.4118303,67482.0,67481.0,0.0638]
[1722158830109,1.56622619,67482.0,67481.0,0.0638]
[1722158830280,1.47756384,67482.0,67481.0,0.0638]
[1722158830482,1.56622619,67482.0,67481.0,0.0638]
[1722158831105,1.47756384,67482.0,67481.0,0.0638]
[1722158831487,1.58839178,67482.0,67481.0,0.0638]
[1722158833246,1.58834762,67482.0,67481.0,0.0638]
[1722158833418,1.58834762,67482.0,67481.0,0.064724]
[1722158833763,1.58834676,67482.0,67481.0,0.064724]
[1722158835867,1.66594676,67482.0,67481.0,0.064724]
[1722158836426,1.66587045,67482.0,67481.0,0.064724]
[1722158839114,1.35117045,67482.0,67481.0,0.064724]
[1722158839301,1.40658839,67482.0,67481.0,0.064724]
[1722158839770,1.31790727,67482.0,67481.0,0.064724]
[1722158839980,1.31807288,67482.0,67481.0,0.064724]
[1722158840353,1.406754,67482.0,67481.0,0.064724]
[1722158840575,1.31807288,67482.0,67481.0,0.064724]
[1722158840923,1.31306092,67482.0,67481.0,0.064724]
[1722158841731,1.40174204,67482.0,67481.0,0.064724]
[1722158843208,1.40146558,67482.0,67481.0,0.064724]
[1722158843580,1.40126847,67482.0,67481.0,0.064724]
[1722158845921,1.31258294,67482.0,67481.0,0.064724]
[1722158846431,1.31234607,67482.0,67481.0,0.064724]
[1722158846723,1.1620865,67482.0,67481.0,0.141924]
[1722158849617,1.16186429,67482.0,67481.0,0.141924]
[1722158851252,1.08426429,67482.0,67481.0,0.141924]
[1722158853047,1.08465287,67482.0,67481.0,0.141924]
[1722158853458,1.08464397,67482.0,67481.0,0.141924]
[1722158855633,1.1734069,67482.0,67481.0,0.141924]
[1722158856189,1.17350769,67482.0,67481.0,0.141924]
[1722158856392,1.08473648,67482.0,67481.0,0.064724]
[1722158856771,1.08473648,67482.0,67481.0,0.002924]
[1722158856772,1.1957005,67482.0,67481.0,0.002924]
[1722158856975,1.08473648,67482.0,67481.0,0.002924]
[1722158857385,1.19571208,67482.0,67481.0,0.002924]
[1722158857585,1.08473648,67482.0,67481.0,0.002924]
[1722158857780,1.23499605,67482.0,67481.0,0.002924]
[1722158857982,1.28927033,67482.0,67481.0,0.002924]
[1722158858419,1.23499605,67482.0,67481.0,0.002924]
[1722158859409,1.23371235,67482.0,67481.0,0.002924]
[1722158860430,1.50723148,67482.0,67481.0,0.002924]
[1722158860654,1.74433148,67482.0,67481.0,0.002924]
[1722158861525,1.61111235,67482.0,67481.0,0.002924]
[1722158862862,1.6111743,67482.0,67481.0,0.002924]
[1722158864299,1.76114333,67482.0,67481.0,0.002924]
[1722158865531,1.6111743,67482.0,67481.0,0.002924]
[1722158866156,1.61139838,67482.0,67481.0,0.002924]
[1722158867279,1.84849838,67482.0,67481.0,0.002924]
[1722158867480,1.76165795,67482.0,67481.0,0.002924]
[1722158867846,1.99875795,67482.0,67481.0,0.002924]
[1722158868379,1.98475795,67482.0,67481.0,0.002924]
[1722158868760,1.99875795,67482.0,67481.0,0.002924]
[1722158869065,2.00775795,67482.0,67481.0,0.002924]
[1722158869266,1.84523315,67482.0,67481.0,0.002924]
[1722158869503,2.00835847,67482.0,67481.0,0.002924]
[1722158869817,2.03635847,67482.0,67481.0,0.002924]
[1722158870048,1.79925847,67482.0,67481.0,0.002924]
[1722158870183,1.78525847,67482.0,67481.0,0.002924]
[1722158871279,2.02235847,67482.0,67481.0,0.002924]
[1722158871505,1.6349989,67482.0,67481.0,0.002924]
[1722158872125,1.6489989,67482.0,67481.0,0.002924]
[1722158872527,1.8860989,67482.0,67481.0,0.002924]
[1722158872854,1.88589501,67482.0,67481.0,0.002924]
[1722158873216,1.64879502,67482.0,67481.0,0.002924]
[1722158873793,1.88589502,67482.0,67481.0,0.002924]
[1722158873997,2.03615459,67482.0,67481.0,0.002924]
[1722158875198,1.79905459,67482.0,67481.0,0.002924]
[1722158875932,1.79861342,67482.0,67481.0,0.002924]
[1722158876131,1.64835385,67482.0,67481.0,0.002924]
[1722158879255,1.64830577,67482.0,67481.0,0.002924]
[1722158881582,1.64820569,67482.0,67481.0,0.002924]
[1722158882081,1.48587358,67482.0,67481.0,0.002924]
[1722158882283,1.64820069,67482.0,67481.0,0.002924]
[1722158882483,1.79846026,67482.0,67481.0,0.002924]
[1722158882785,1.71268561,67482.0,67481.0,0.002924]
[1722158882994,1.56267023,67482.0,67481.0,0.002924]
[1722158884015,1.48448043,67482.0,67481.0,0.002924]
[1722158884222,1.56208043,67482.0,67481.0,0.002924]
[1722158884803,1.56218737,67482.0,67481.0,0.002924]
[1722158886333,1.79204694,67482.0,67481.0,0.002924]
[1722158886533,1.94185746,67482.0,67481.0,0.002924]
[1722158886738,1.79182613,67482.0,67481.0,0.002924]
[1722158887101,1.64156656,67482.0,67481.0,0.002924]
[1722158887307,1.79159202,67482.0,67481.0,0.002924]
[1722158887579,1.64156656,67482.0,67481.0,0.002924]
[1722158888193,1.64177307,67482.0,67481.0,0.002924]
[1722158888642,1.64177307,67482.0,67481.0,0.005524]
[1722158889166,1.79179899,67482.0,67481.0,0.005524]
[1722158889820,1.64177307,67482.0,67481.0,0.005524]
[1722158890024,1.79179899,67482.0,67481.0,0.005524]
[1722158890477,1.64177307,67482.0,67481.0,0.005524]
[1722158891519,1.64204116,67482.0,67481.0,0.005524]
[1722158891950,1.54458177,67482.0,67481.0,0.005524]
[1722158892151,1.64208356,67482.0,67481.0,0.005524]
[1722158894036,1.48476755,67482.0,67481.0,0.071824]
[1722158894205,1.56236755,67482.0,67481.0,0.071824]
[1722158894549,1.40017358,67482.0,67481.0,0.071824]
[1722158894746,1.56212996,67482.0,67481.0,0.071824]
[1722158895032,1.24742996,67482.0,67481.0,0.071824]
[1722158895152,1.24742996,67482.0,67481.0,0.150524]
[1722158895993,1.23342996,67482.0,67481.0,0.150524]
[1722158896198,1.20542996,67482.0,67481.0,0.150524]
[1722158896390,1.21842996,67482.0,67481.0,0.150524]
[1722158896595,1.23242996,67482.0,67481.0,0.150524]
[1722158897748,1.05747358,67482.0,67481.0,0.150524]
[1722158897907,1.23331728,67482.0,67481.0,0.150524]
[1722158898106,1.21931728,67482.0,67481.0,0.150524]
[1722158898529,1.22931728,67482.0,67481.0,0.150524]
[1722158901190,1.16366251,67482.0,67481.0,0.150524]
[1722158901396,1.34033583,67482.0,67481.0,0.150524]
[1722158901596,0.5521571,67482.0,67481.0,0.150524]
[1722158901830,0.08536401,67482.0,67481.0,0.150524]
[1722158902000,0.26944342,67482.0,67481.0,0.150524]
[1722158902303,0.15089342,67482.0,67481.0,0.150524]
[1722158902642,0.14089342,67482.0,67481.0,0.150524]
[1722158903001,0.12889342,67482.0,67481.0,0.150524]
[1722158903178,0.13289342,67482.0,67481.0,0.269075]
[1722158903402,0.13289342,67482.0,67481.0,0.150524]
[1722158903627,0.06930337,67482.0,67481.0,0.150524]
[1722158903990,0.07230337,67482.0,67481.0,0.150524]
[1722158904197,0.007,67482.0,67481.0,0.150524]
[1722158904393,0.06828302,67482.0,67481.0,0.150524]
[1722158904593,0.118545,67485.0,67482.0,0.0816]
[1722158904799,0.13302267,67484.0,67483.0,0.0629]
[1722158904997,0.13302267,67484.0,67483.0,0.1445]
[1722158906434,0.13402267,67484.0,67483.0,0.1445]
[1722158906592,0.06628303,67484.0,67483.0,0.1445]
[1722158907514,0.13418222,67484.0,67483.0,0.1445]
[1722158907713,0.06635982,67484.0,67483.0,0.1445]
[1722158909533,0.06635982,67484.0,67483.0,0.500144]
[1722158909733,0.001,67484.0,67483.0,0.500144]
[1722158909933,0.001,67484.0,67483.0,0.263048]
[1722158910656,0.002,67484.0,67483.0,0.263048]
[1722158911251,0.00084,67486.0,67484.0,0.1445]
[1722158911457,0.00084,67486.0,67485.0,0.1445]
[1722158911657,0.06654351,67486.0,67485.0,0.1445]
[1722158912733,0.06654351,67486.0,67485.0,0.1475]
[1722158913911,0.06639848,67486.0,67485.0,0.1475]
[1722158914571,0.06639848,67486.0,67485.0,0.266044]
[1722158915002,0.06639848,67486.0,67485.0,0.269044]
[1722158915142,0.06639848,67486.0,67485.0,0.1505]
[1722158915347,0.00084,67486.0,67485.0,0.269044]
[1722158916302,0.00084,67486.0,67485.0,0.506133]
[1722158917064,0.00084,67486.0,67485.0,0.743222]
[1722158917976,0.00084,67486.0,67485.0,0.740222]
[1722158918284,0.00084,67486.0,67485.0,1.12457057]
[1722158918480,0.00184,67486.0,67485.0,1.12757057]
[1722158918918,0.00284,67486.0,67485.0,1.13057057]
[1722158919747,0.00184,67486.0,67485.0,1.12757057]
[1722158920150,0.00184,67486.0,67485.0,1.32063057]
[1722158920417,0.00184,67486.0,67485.0,1.32263057]
[1722158920625,0.00284,67486.0,67485.0,1.56971957]
[1722158920841,0.00284,67486.0,67485.0,1.74891957]
[1722158921303,0.00284,67486.0,67485.0,1.50983057]
[1722158921678,0.00284,67486.0,67485.0,1.74691957]
[1722158922992,0.00284,67486.0,67485.0,1.74891957]
[1722158924189,0.45009979,67520.0,67506.0,0.1411]
[1722158924190,0.0015542,67519.0,67506.0,0.1411]
[1722158924388,0.06501724,67518.0,67516.0,0.0776]
[1722158924566,0.06501724,67518.0,67517.0,0.259588]
[1722158924945,0.06487826,67522.0,67521.0,0.118481]
[1722158925147,0.06487607,67523.0,67522.0,0.118479]
[1722158925352,0.00084,67524.0,67520.0,0.314565]
[1722158925565,0.00084,67524.0,67522.0,0.118479]
[1722158925924,0.00084,67524.0,67523.0,0.118478]
[1722158926125,0.00084,67524.0,67523.0,0.180478]
[1722158926543,0.00084,67524.0,67523.0,0.73199]
[1722158926705,0.00084,67524.0,67523.0,0.574134]
[1722158927334,0.00084,67524.0,67523.0,0.567134]
[1722158928440,0.00184,67524.0,67523.0,0.574134]
[1722158930339,0.00284,67524.0,67523.0,0.2327]
[1722158931166,0.00284,67524.0,67523.0,0.076]
[1722158932682,0.00284,67524.0,67523.0,0.194478]
[1722158934413,0.00284,67524.0,67523.0,0.076]
[1722158935929,0.00284,67524.0,67523.0,0.014]
[1722158938967,0.121316,67524.0,67523.0,0.014]
[1722158939167,0.358268,67524.0,67523.0,0.014]
[1722158940161,0.00284,67524.0,67523.0,0.014]
[1722158940349,0.00284,67524.0,67523.0,0.16]
[1722158946659,0.00284,67524.0,67523.0,0.0777]
[1722158949219,0.06675666,67524.0,67523.0,0.0777]
[1722158949578,0.06675666,67524.0,67523.0,0.014]
[1722158952364,0.00284,67524.0,67523.0,0.014]
[1722158952569,0.06651348,67524.0,67523.0,0.014]
[1722158953566,0.13110182,67524.0,67523.0,0.014]
[1722158954533,0.13104018,67524.0,67523.0,0.014]
[1722158955155,0.12942739,67524.0,67523.0,0.014]
[1722158956010,0.12942739,67524.0,67523.0,0.132478]
[1722158957194,0.12942739,67524.0,67523.0,0.014]
[1722158957435,0.12942739,67524.0,67523.0,0.132478]
[1722158958473,0.1299703,67524.0,67523.0,0.132478]
[1722158960089,0.1299703,67524.0,67523.0,0.14154537]
[1722158961763,0.06742834,67524.0,67523.0,0.14154537]
[1722158961964,0.06539169,67524.0,67523.0,0.14154537]
[1722158962099,0.06539169,67524.0,67523.0,0.14246937]
[1722158962303,0.12995509,67524.0,67523.0,0.14246937]
[1722158965029,0.12996132,67524.0,67523.0,0.14246937]
[1722158966450,0.12996132,67524.0,67523.0,0.014924]
[1722158966624,0.26846132,67524.0,67523.0,0.014924]
[1722158966828,0.7191753,67524.0,67523.0,0.014924]
[1722158968291,0.7181753,67524.0,67523.0,0.007924]
[1722158969368,0.5701152,67524.0,67523.0,0.007924]
[1722158969543,0.5691152,67524.0,67523.0,0.000924]
[1722158969743,0.8060672,67524.0,67523.0,0.000924]
[1722158970147,0.8060672,67524.0,67523.0,0.006924]
[1722158970148,0.7171753,67524.0,67523.0,0.006924]
[1722158970532,0.38493732,67524.0,67523.0,0.000924]
[1722158971096,0.20556132,67524.0,67523.0,0.000924]
[1722158971712,0.19803554,67524.0,67523.0,0.000924]
[1722158971853,0.31651154,67524.0,67523.0,0.000924]
[1722158972048,0.31651162,67524.0,67523.0,0.000924]
[1722158974494,0.19803562,67524.0,67523.0,0.000924]
[1722158974901,0.19812294,67524.0,67523.0,0.000924]
[1722158975103,0.31659894,67524.0,67523.0,0.000924]
[1722158976683,0.19812294,67524.0,67523.0,0.000924]
[1722158977002,0.1335346,67524.0,67523.0,0.000924]
[1722158977206,0.12330178,67524.0,67523.0,0.000924]
[1722158977611,0.12174758,67524.0,67523.0,0.000924]
[1722158978041,0.12174758,67524.0,67523.0,0.119402]
[1722158978248,0.11822304,67524.0,67523.0,0.119402]
[1722158979538,0.11822304,67524.0,67523.0,0.000924]
[1722158981520,0.11365789,67524.0,67523.0,0.000924]
[1722158984760,0.11359185,67524.0,67523.0,0.000924]
[1722158988127,0.11359839,67524.0,67523.0,0.000924]
[1722158991338,0.06665298,67524.0,67523.0,0.000924]
[1722158991483,0.11363109,67524.0,67523.0,0.000924]
[1722158992070,0.11363109,67524.0,67523.0,0.119402]
[1722158996361,0.11363109,67524.0,67523.0,0.74357357]
[1722158996657,0.11363109,67524.0,67523.0,0.88167357]
[1722158996892,0.04781811,67524.0,67523.0,0.88167357]
[1722158997086,0.11512806,67524.0,67523.0,0.88167357]
[1722158997292,0.04781811,67524.0,67523.0,0.88167357]
[1722158997851,0.00084,67524.0,67523.0,0.88167357]
[1722158998052,0.04865489,67524.0,67523.0,0.88867357]
[1722158998455,0.04865489,67524.0,67523.0,0.89567357]
[1722158999165,0.11469402,67524.0,67523.0,0.52061757]
[1722158999367,0.11459391,67524.0,67523.0,0.52061757]
[1722158999964,0.19679391,67524.0,67523.0,0.014924]
[1722159000165,0.19679391,67524.0,67523.0,0.133402]
[1722159000962,0.19345905,67524.0,67523.0,0.133402]
[1722159001164,0.19345905,67524.0,67523.0,0.014924]
[1722159001566,0.31193505,67524.0,67523.0,0.014924]
[1722159002188,0.37193505,67524.0,67523.0,0.014924]
[1722159002682,0.60888705,67524.0,67523.0,0.014924]
[1722159002882,0.84583905,67524.0,67523.0,0.014924]
[1722159003052,0.92286223,67524.0,67523.0,0.014924]
[1722159003257,1.03404467,67524.0,67523.0,0.014924]
[1722159003485,1.03391287,67524.0,67523.0,0.014924]
[1722159003882,1.03291287,67524.0,67523.0,0.007924]
[1722159004040,1.03291287,67524.0,67523.0,0.010924]
[1722159004256,0.60773802,67524.0,67523.0,0.010924]
[1722159004423,0.37078602,67524.0,67523.0,0.010924]
[1722159004762,0.60773802,67524.0,67523.0,0.003924]
[1722159004965,0.60773802,67524.0,67523.0,0.007924]
[1722159006234,0.37078602,67524.0,67523.0,0.007924]
[1722159006582,0.60773802,67524.0,67523.0,0.007924]
[1722159007182,0.31079836,67524.0,67523.0,0.007924]
[1722159007558,0.54775036,67524.0,67523.0,0.007924]
[1722159008166,0.31079836,67524.0,67523.0,0.007924]
[1722159008567,0.54775036,67524.0,67523.0,0.007924]
[1722159009417,0.31079836,67524.0,67523.0,0.007924]
[1722159009800,0.26745502,67524.0,67523.0,0.007924]
[1722159010002,0.31118428,67524.0,67523.0,0.007924]
[1722159011318,0.19270828,67524.0,67523.0,0.007924]
[1722159011652,0.11050828,67524.0,67523.0,0.51361757]
[1722159011864,0.11050828,67524.0,67523.0,0.66051757]
[1722159011865,0.04456926,67524.0,67523.0,0.66051757]
[1722159012053,0.04456926,67524.0,67523.0,0.89747357]
[1722159012054,0.00084,67524.0,67523.0,0.89747357]
[1722159013187,0.00084,67524.0,67523.0,1.34848957]
[1722159013880,0.00084,67524.0,67523.0,1.34548957]
[1722159014236,0.00184,67524.0,67523.0,1.35948957]